bitfinex/quotes_BTCUSD_20250825
["timestamp","ask_amount","ask_price","bid_price","bid_amount"]
[1756152720882,1.6650469,110410.0,110400.0,0.01400119]
[1756152721102,1.7483482,110410.0,110400.0,0.01400119]
[1756152721553,1.68613091,110410.0,110400.0,0.01400119]
[1756152721773,1.67147932,110410.0,110400.0,0.01400119]
[1756152721991,0.83860844,110400.0,110390.0,0.0005084]
[1756152722250,1.3258776,110400.0,110390.0,0.0005084]
[1756152722473,1.33671679,110400.0,110390.0,0.0005084]
[1756152722697,1.33655679,110400.0,110390.0,0.0005084]
[1756152722921,1.3353423,110400.0,110390.0,0.0005084]
[1756152723148,1.33495799,110400.0,110390.0,0.0005084]
[1756152723367,1.13589034,110400.0,110390.0,0.0005084]
[1756152723592,0.52168423,110390.0,110380.0,0.03943968]
[1756152723802,0.70894017,110390.0,110380.0,0.03943968]
[1756152724030,0.85400867,110390.0,110380.0,0.03943968]
[1756152724245,0.84683413,110390.0,110380.0,0.03943968]
[1756152724466,1.05423413,110390.0,110380.0,0.03943968]
[1756152724685,0.84683413,110390.0,110380.0,0.03943968]
[1756152724907,0.84117009,110380.0,110370.0,0.0083356]
[1756152725138,0.18122308,110370.0,110350.0,0.170751]
[1756152725377,2.71682359,110370.0,110350.0,0.170751]
[1756152725668,2.70804513,110360.0,110350.0,0.170751]
[1756152725888,2.85720265,110360.0,110350.0,0.170751]
[1756152726114,2.87048053,110360.0,110350.0,0.170751]
[1756152726329,2.86835253,110360.0,110350.0,0.170751]
[1756152726560,0.53454993,110360.0,110350.0,0.170751]
[1756152726773,0.32318993,110360.0,110350.0,0.170751]
[1756152727003,2.16412292,110360.0,110350.0,0.173991]
[1756152727265,2.27972292,110360.0,110350.0,0.173991]
[1756152727454,2.06812292,110360.0,110350.0,0.170751]
[1756152727670,2.0814008,110360.0,110350.0,0.170751]
[1756152727911,2.0814008,110360.0,110350.0,0.173991]
[1756152728127,2.03108092,110360.0,110350.0,0.448991]
[1756152728349,2.23648199,110360.0,110350.0,0.548991]
[1756152728563,2.21782974,110360.0,110350.0,0.548991]
[1756152728781,2.00634974,110360.0,110350.0,0.548991]
[1756152729252,2.00634974,110360.0,110350.0,0.56644002]
[1756152729471,1.9942445,110360.0,110350.0,0.56644002]
[1756152729709,0.00047604,110390.0,110350.0,0.56644002]
[1756152729954,0.00047604,110390.0,110380.0,0.375]
[1756152730175,1.99151604,110390.0,110380.0,0.375]
[1756152730398,0.00047604,110390.0,110380.0,0.39144902]
[1756152730848,0.00047604,110390.0,110380.0,1.71128022]
[1756152731286,0.00047604,110390.0,110380.0,0.5807407]
[1756152731514,0.527258,110460.0,110380.0,0.5807407]
[1756152731515,0.5,110460.0,110450.0,0.13209944]
[1756152731754,1.99916924,110460.0,110450.0,0.13209944]
[1756152731960,1.99916924,110460.0,110450.0,0.1322436]
[1756152732444,0.00812924,110460.0,110450.0,0.14969262]
[1756152732670,0.28336,110500.0,110490.0,0.13179944]
[1756152732891,1.99916649,110500.0,110490.0,0.13179944]
[1756152733129,2.21292649,110500.0,110490.0,0.125]
[1756152733359,2.21292649,110500.0,110480.0,0.13079944]
[1756152733592,1.99104,110490.0,110480.0,0.13053162]
[1756152733821,1.99916649,110490.0,110480.0,0.13053162]
[1756152734040,0.00812649,110490.0,110480.0,0.13067578]
[1756152734706,0.00812649,110490.0,110480.0,0.2481248]
[1756152734955,0.0004,110530.0,110520.0,0.13053162]
[1756152735173,2.21382261,110530.0,110520.0,0.13053162]
[1756152735405,1.99954261,110530.0,110520.0,0.13053162]
[1756152736323,2.00001953,110530.0,110520.0,0.13053162]
[1756152736548,2.00001953,110530.0,110520.0,0.14798064]
[1756152736784,2.00001953,110530.0,110520.0,0.29798064]
[1756152736785,0.00895306,110530.0,110520.0,0.29798064]
[1756152737017,0.00895306,110530.0,110520.0,0.15098064]
[1756152737018,0.00995306,110530.0,110520.0,0.15098064]
[1756152737241,0.00187692,110530.0,110520.0,0.25098064]
[1756152737507,0.00087692,110530.0,110520.0,0.24798064]
[1756152737942,0.00087692,110530.0,110520.0,0.15098064]
[1756152737943,1.99291692,110530.0,110520.0,0.15098064]
[1756152738386,1.99291692,110530.0,110520.0,0.003]
[1756152738387,2.34096641,110530.0,110520.0,0.003]
[1756152738614,2.41379641,110530.0,110520.0,0.003]
[1756152738885,2.63087551,110530.0,110520.0,0.13353162]
[1756152739103,0.34,110520.0,110510.0,0.13053162]
[1756152739326,2.33104,110520.0,110510.0,0.13053162]
[1756152739550,2.54804,110520.0,110510.0,0.13053162]
[1756152739769,1.99104,110520.0,110510.0,0.13053162]
[1756152740033,1.99104,110520.0,110510.0,0.14798064]
[1756152740541,0.00087692,110530.0,110490.0,0.32220542]
[1756152740542,0.00187692,110530.0,110520.0,0.13053162]
[1756152740815,1.99281392,110530.0,110520.0,0.13053162]
[1756152741043,0.00087692,110530.0,110520.0,0.13053162]
[1756152741270,0.5,110520.0,110510.0,0.14798064]
[1756152741508,1.990937,110520.0,110510.0,0.14798064]
[1756152741741,1.990937,110520.0,110510.0,0.25024287]
[1756152741975,1.990937,110520.0,110510.0,0.14798064]
[1756152742204,2.330937,110520.0,110510.0,0.14798064]
[1756152742434,1.990937,110520.0,110510.0,0.14798064]
[1756152742930,1.991937,110520.0,110510.0,0.13553162]
[1756152743165,2.331937,110520.0,110510.0,0.13553162]
[1756152743435,1.990937,110520.0,110510.0,0.13053162]
[1756152743687,1.990937,110520.0,110490.0,0.2168]
[1756152743937,2.51316561,110520.0,110510.0,0.004]
[1756152744173,0.53004119,110510.0,110480.0,0.13053162]
[1756152744418,0.18101185,110490.0,110480.0,0.13053162]
[1756152744657,0.18101185,110490.0,110450.0,0.13053162]
[1756152744658,0.34,110470.0,110450.0,0.13053162]
[1756152744895,0.34,110470.0,110460.0,0.13053162]
[1756152744896,0.55664,110470.0,110460.0,0.13053162]
[1756152745137,5.34,110470.0,110460.0,0.12993162]
[1756152745388,5.34,110470.0,110460.0,0.13072162]
[1756152745651,5.0,110470.0,110460.0,0.13072162]
[1756152745902,0.06994589,110520.0,110510.0,0.12993162]
[1756152746141,5.35629623,110520.0,110510.0,0.12993162]
[1756152746381,5.01629623,110520.0,110510.0,0.12993162]
[1756152746630,0.34,110510.0,110500.0,0.12793162]
[1756152746867,5.34,110510.0,110500.0,0.12793162]
[1756152747102,5.0,110510.0,110500.0,0.14538064]
[1756152747590,5.0,110510.0,110500.0,0.71700397]
[1756152747848,0.00026589,110520.0,110510.0,0.12793162]
[1756152748090,0.00026589,110520.0,110510.0,0.3999051]
[1756152748335,0.00026589,110520.0,110510.0,0.39438064]
[1756152748563,0.00074252,110520.0,110510.0,0.55791071]
[1756152748794,0.00074252,110520.0,110510.0,0.39438064]
[1756152749029,0.00074252,110520.0,110510.0,0.46014064]
[1756152749270,5.00074252,110520.0,110510.0,0.12693162]
[1756152749504,0.34,110510.0,110480.0,0.28556]
[1756152749739,5.34295,110510.0,110500.0,0.12693162]
[1756152749976,5.34,110510.0,110500.0,0.12693162]
[1756152750192,5.0,110510.0,110500.0,0.36006064]
[1756152750425,0.00174252,110520.0,110500.0,0.36006064]
[1756152750426,0.00074252,110520.0,110510.0,0.14438064]
[1756152750642,5.00174252,110520.0,110510.0,0.003]
[1756152750866,5.34174252,110520.0,110510.0,0.12993162]
[1756152751115,5.55929252,110520.0,110510.0,0.12693162]
[1756152751335,5.34369252,110520.0,110510.0,0.12693162]
[1756152751574,5.52465524,110520.0,110510.0,0.12693162]
[1756152751792,5.54070367,110520.0,110510.0,0.10868162]
[1756152752018,0.52097909,110510.0,110500.0,4e-05]
[1756152752240,0.52101185,110490.0,110480.0,0.00024]
[1756152752466,5.72665185,110490.0,110480.0,0.00024]
[1756152752681,5.72665185,110490.0,110460.0,0.10868162]
[1756152752682,0.34,110470.0,110460.0,0.10868162]
[1756152752941,5.55851,110470.0,110460.0,0.10868162]
[1756152753178,5.34295,110470.0,110460.0,0.10868162]
[1756152753415,5.34,110470.0,110460.0,0.10868162]
[1756152753885,5.0,110470.0,110460.0,0.11180162]
[1756152754125,0.18471806,110520.0,110490.0,0.12613064]
[1756152754126,5.0,110500.0,110490.0,0.12613064]
[1756152754348,4.99842599,110510.0,110500.0,0.12513064]
[1756152754574,0.00026589,110520.0,110510.0,0.10768162]
[1756152754801,5.00832959,110520.0,110510.0,0.10768162]
[1756152755039,5.00832959,110520.0,110500.0,0.10768162]
[1756152755040,5.40768231,110520.0,110500.0,0.10768162]
[1756152755272,5.21564,110510.0,110500.0,0.10768162]
[1756152755486,5.3480637,110510.0,110500.0,0.10768162]
[1756152755708,5.53199279,110510.0,110500.0,0.10768162]
[1756152755928,5.53199279,110510.0,110490.0,0.10768162]
[1756152756177,5.52394547,110500.0,110490.0,0.10768162]
[1756152756384,0.52101185,110490.0,110480.0,0.10768162]
[1756152756608,0.34,110470.0,110430.0,0.07220542]
[1756152756839,0.52204462,110470.0,110460.0,0.11168162]
[1756152757057,5.341,110470.0,110460.0,0.11168162]
[1756152757322,5.34,110470.0,110460.0,0.10768162]
[1756152757554,5.52916024,110470.0,110460.0,0.10768162]
[1756152757799,5.52916024,110470.0,110420.0,0.57472542]
[1756152757800,5.35106562,110470.0,110420.0,0.57472542]
[1756152758054,0.00811562,110470.0,110460.0,0.10768162]
[1756152758277,5.02229124,110470.0,110460.0,0.10768162]
[1756152758723,5.01517562,110470.0,110460.0,0.22925064]
[1756152758943,5.01517562,110470.0,110460.0,0.30145606]
[1756152759169,0.01974333,110470.0,110460.0,0.30145606]
[1756152759384,0.01974333,110470.0,110460.0,0.44833606]
[1756152759595,0.03607481,110470.0,110460.0,0.01844902]
[1756152759816,0.03507481,110470.0,110440.0,0.53236]
[1756152760083,0.03507481,110470.0,110460.0,0.10768162]
[1756152760304,5.03607481,110470.0,110460.0,0.10968162]
[1756152760514,0.03607481,110470.0,110460.0,0.12713064]
[1756152760760,0.03515079,110470.0,110460.0,0.10768162]
[1756152760994,0.5,110460.0,110450.0,0.10768162]
[1756152761231,5.02455604,110460.0,110450.0,0.10768162]
[1756152761493,5.02455604,110460.0,110450.0,0.22513064]
[1756152761731,5.02455604,110460.0,110450.0,0.37513064]
[1756152761970,0.02455604,110460.0,110450.0,0.55620805]
[1756152762208,5.02455604,110460.0,110450.0,0.01744902]
[1756152762468,0.34,110450.0,110430.0,0.00014416]
[1756152762697,0.34,110450.0,110440.0,0.10768162]
[1756152762698,5.36455604,110450.0,110440.0,0.10768162]
[1756152762931,5.02455604,110450.0,110440.0,0.12513064]
[1756152763165,5.36455604,110450.0,110440.0,0.10768162]
[1756152763396,5.36753399,110450.0,110430.0,0.00014416]
[1756152763634,5.34295,110440.0,110430.0,0.10782578]
[1756152763890,5.36458399,110440.0,110430.0,0.10782578]
[1756152764117,5.02458642,110440.0,110430.0,0.20782578]
[1756152764352,5.02458642,110440.0,110430.0,0.4408348]
[1756152764608,0.00819502,110440.0,110430.0,0.841625]
[1756152765551,0.55476739,110520.0,110510.0,0.12513064]
[1756152765785,5.03552858,110520.0,110510.0,0.20448948]
[1756152766012,0.01665442,110520.0,110510.0,0.38546857]
[1756152766237,0.01665442,110520.0,110510.0,0.53546857]
[1756152766471,0.00788528,110520.0,110510.0,0.53546857]
[1756152766689,0.02338265,110570.0,110560.0,0.53438673]
[1756152766937,0.0545015,110580.0,110570.0,0.53437036]
[1756152767180,0.04841225,110580.0,110570.0,0.53437036]
[1756152767427,0.01888131,110580.0,110570.0,0.53437036]
[1756152767657,0.05494818,110600.0,110570.0,0.53437036]
[1756152767658,0.05494818,110600.0,110590.0,0.53433765]
[1756152767890,0.00370749,110610.0,110600.0,0.35148948]
[1756152768133,0.00985513,110610.0,110600.0,0.5323213]
[1756152768369,0.00985513,110610.0,110600.0,0.4520013]
[1756152768370,0.02873369,110610.0,110600.0,0.4520013]
[1756152768608,0.02872821,110610.0,110600.0,0.63760948]
[1756152768840,0.00370749,110610.0,110600.0,0.8184413]
[1756152769551,0.00418499,110610.0,110600.0,0.42116948]
[1756152769806,0.00418499,110610.0,110600.0,0.18212902]
[1756152770036,0.00418499,110610.0,110600.0,0.41812948]
[1756152770270,0.02916254,110610.0,110600.0,0.08704046]
[1756152770495,5.03116254,110610.0,110600.0,0.30968046]
[1756152770740,5.03116254,110610.0,110600.0,0.40668046]
[1756152770964,0.02302747,110610.0,110600.0,0.18404046]
[1756152771196,0.02302747,110610.0,110600.0,0.30548046]
[1756152771197,0.00418499,110610.0,110600.0,0.30548046]
[1756152771432,5.00518499,110610.0,110600.0,0.30948046]
[1756152771681,0.00518499,110610.0,110600.0,0.20548948]
[1756152771912,0.00518499,110610.0,110600.0,0.09104046]
[1756152771913,0.00813499,110610.0,110600.0,0.09104046]
[1756152772384,5.02229094,110610.0,110600.0,0.08779046]
[1756152772609,5.02129094,110610.0,110600.0,0.08379046]
[1756152772853,0.003,110600.0,110550.0,0.28744]
[1756152773083,0.003,110580.0,110530.0,0.06964]
[1756152773323,5.50295,110570.0,110560.0,0.0695058]
[1756152773579,5.34595,110570.0,110560.0,0.0695058]
[1756152773792,5.35416014,110570.0,110560.0,0.0695058]
[1756152774030,5.35711014,110570.0,110560.0,0.0695058]
[1756152774256,5.35416014,110570.0,110560.0,0.0695058]
[1756152774707,5.54099103,110570.0,110560.0,0.0695058]
[1756152774933,0.35204486,110560.0,110550.0,0.0695058]
[1756152775153,0.35204486,110560.0,110510.0,0.14180542]
[1756152775154,5.52686339,110560.0,110510.0,0.14180542]
[1756152775381,5.52686339,110560.0,110550.0,0.0695058]
[1756152775382,0.52391339,110560.0,110550.0,0.0695058]
[1756152775619,5.52391339,110560.0,110550.0,0.0695058]
[1756152775846,5.34,110560.0,110550.0,0.0695058]
[1756152776064,5.36027477,110560.0,110550.0,0.0695058]
[1756152776306,5.54117202,110560.0,110550.0,0.0695058]
[1756152776517,5.36027477,110560.0,110550.0,0.0695058]
[1756152776734,5.54117202,110560.0,110550.0,0.0695058]
[1756152776959,0.52092998,110540.0,110530.0,0.0695058]
[1756152777177,5.52092998,110540.0,110530.0,0.0695058]
[1756152777396,5.34311,110540.0,110530.0,0.0695058]
[1756152777657,5.54120712,110540.0,110530.0,0.0695058]
[1756152777884,5.36027714,110540.0,110530.0,0.0695058]
[1756152778323,5.35727714,110540.0,110530.0,0.0695058]
[1756152778542,5.54120712,110540.0,110530.0,0.0695058]
[1756152778759,0.01204731,110530.0,110520.0,0.0695058]
[1756152779001,0.843,110520.0,110510.0,0.0695058]
[1756152779213,5.5402617,110520.0,110510.0,0.0695058]
[1756152779434,5.36240652,110520.0,110510.0,0.0695058]
[1756152779652,5.35940652,110520.0,110510.0,0.0695058]
[1756152779868,5.54336924,110520.0,110510.0,0.0695058]
[1756152780085,5.55753887,110520.0,110510.0,0.0695058]
[1756152780303,5.36890273,110520.0,110510.0,0.0695058]
[1756152780518,5.38219487,110520.0,110510.0,0.0695058]
[1756152780739,5.56615759,110520.0,110510.0,0.0695058]
[1756152780959,5.38519487,110520.0,110510.0,0.0695058]
[1756152781181,0.343,110510.0,110500.0,0.0705058]
[1756152781429,5.36443821,110510.0,110500.0,0.0705058]
[1756152781839,5.00814607,110510.0,110500.0,0.0705058]
[1756152782072,5.00814607,110510.0,110500.0,0.08795482]
[1756152782295,5.00814607,110510.0,110500.0,0.0705058]
[1756152782524,5.34814607,110510.0,110500.0,0.08795482]
[1756152782743,5.00814607,110510.0,110500.0,0.0705058]
[1756152782965,5.00814607,110510.0,110500.0,0.09100482]
[1756152783192,5.02231391,110510.0,110500.0,0.09100482]
[1756152783431,0.02231391,110510.0,110500.0,0.16321024]
[1756152783654,0.02231391,110510.0,110500.0,0.41021024]
[1756152783879,0.01906391,110510.0,110500.0,0.59120571]
[1756152784160,0.00047965,110570.0,110560.0,0.0695058]
[1756152784374,0.00047965,110570.0,110560.0,0.05377217]
[1756152784375,5.00047965,110570.0,110560.0,0.05377217]
[1756152784596,5.01677556,110570.0,110560.0,0.05377217]
[1756152785045,5.01677556,110570.0,110560.0,0.05603338]
[1756152785265,0.00047965,110570.0,110560.0,0.55613605]
[1756152785488,0.00047965,110570.0,110560.0,0.554019]
[1756152785708,0.00047965,110570.0,110560.0,0.58936175]
[1756152785937,0.00047965,110570.0,110560.0,0.770259]
[1756152786382,0.00047965,110570.0,110560.0,1.23316675]
[1756152786617,0.00047965,110570.0,110560.0,1.3190515]
[1756152786827,0.00047965,110570.0,110560.0,1.1028115]
[1756152787043,0.00047965,110570.0,110560.0,2.07991747]
[1756152787293,0.00047965,110570.0,110560.0,0.47872133]
[1756152787505,0.00047965,110570.0,110560.0,0.49617035]
[1756152787729,0.00047965,110570.0,110560.0,0.33039318]
[1756152787959,0.07220542,110630.0,110620.0,0.05067992]
[1756152788179,5.08848425,110630.0,110620.0,0.05067992]
[1756152788406,5.01627883,110630.0,110620.0,0.06812894]
[1756152788633,5.01627883,110630.0,110620.0,0.07038892]
[1756152788848,0.01627883,110630.0,110620.0,0.3196489]
[1756152789097,0.01627883,110630.0,110620.0,0.16412894]
[1756152789372,0.01627883,110630.0,110620.0,0.31879306]
[1756152789609,0.01627883,110630.0,110620.0,0.83812223]
[1756152789610,0.01527883,110630.0,110620.0,0.83812223]
[1756152789845,0.0004,110640.0,110630.0,0.49491172]
[1756152789846,0.01454976,110640.0,110630.0,0.49491172]
[1756152790075,0.01454976,110640.0,110630.0,0.70943172]
[1756152790302,0.01454976,110640.0,110630.0,0.31617894]
[1756152790303,0.0004,110640.0,110630.0,0.31617894]
[1756152790515,0.0004,110640.0,110630.0,0.52844894]
[1756152790730,0.0004,110640.0,110630.0,0.31312894]
[1756152790948,5.0004,110640.0,110630.0,0.52840894]
[1756152791185,0.0004,110640.0,110630.0,0.78184172]
[1756152791405,0.0004,110650.0,110640.0,0.49389538]
[1756152791630,0.0004,110650.0,110640.0,0.49694538]
[1756152791877,0.02980576,110670.0,110660.0,0.49386271]
[1756152792071,0.02980576,110670.0,110660.0,0.53338894]
[1756152792291,0.02980576,110670.0,110660.0,0.92936271]
[1756152792738,0.02980576,110670.0,110660.0,0.83912271]
[1756152792992,0.02980576,110670.0,110660.0,0.92932271]
[1756152793236,0.03028326,110670.0,110660.0,0.92932271]
[1756152793464,0.0141427,110710.0,110700.0,0.16312894]
[1756152793755,0.0004,110720.0,110710.0,0.21612894]
[1756152794036,0.0004,110720.0,110710.0,0.06712894]
[1756152794037,5.0004,110720.0,110710.0,0.06712894]
[1756152794299,5.00351,110720.0,110710.0,0.06712894]
[1756152794577,4.552988,110720.0,110710.0,0.23196902]
[1756152794858,4.552988,110720.0,110710.0,0.28164894]
[1756152795360,4.549878,110720.0,110710.0,0.06612894]
[1756152795361,4.552988,110720.0,110710.0,0.06612894]
[1756152795622,4.897988,110720.0,110710.0,0.04967992]
[1756152795850,0.345,110710.0,110700.0,0.04332408]
[1756152796074,5.07864015,110710.0,110700.0,0.04332408]
[1756152796550,5.33891796,110710.0,110700.0,0.00014416]
[1756152796779,5.353065,110710.0,110700.0,0.00014416]
[1756152797012,5.353305,110710.0,110700.0,0.00014416]
[1756152797279,5.30802719,110710.0,110700.0,0.00014416]
[1756152797503,4.90813504,110710.0,110700.0,0.05032408]
[1756152797717,4.91313504,110710.0,110700.0,0.05032408]
[1756152797940,4.91213504,110710.0,110700.0,0.05032408]
[1756152798172,4.91213504,110710.0,110700.0,0.04332408]
[1756152798435,4.91113504,110710.0,110700.0,0.04332408]
[1756152798671,4.91213504,110710.0,110700.0,0.04732408]
[1756152798906,4.91213504,110710.0,110700.0,0.00414416]
[1756152798907,5.09278719,110710.0,110700.0,0.00414416]
[1756152799151,4.91213504,110710.0,110700.0,0.04732408]
[1756152799603,4.91213504,110710.0,110700.0,0.00414416]
[1756152799604,5.09278719,110710.0,110700.0,0.00414416]
[1756152799830,5.09278719,110710.0,110700.0,0.04332408]
[1756152800057,5.30742719,110710.0,110700.0,0.05032408]
[1756152800298,5.09378719,110710.0,110700.0,0.05032408]
[1756152800535,4.91313504,110710.0,110700.0,0.05032408]
[1756152800771,4.91313504,110710.0,110700.0,0.04332408]
[1756152800772,4.90902504,110710.0,110700.0,0.04332408]
[1756152801028,4.90902504,110710.0,110700.0,0.05032408]
[1756152801264,4.91002504,110710.0,110700.0,0.05032408]
[1756152801506,4.91002504,110710.0,110700.0,0.04332408]
[1756152801507,5.08967719,110710.0,110700.0,0.04332408]
[1756152801767,5.32315011,110710.0,110700.0,0.04332408]
[1756152802004,5.32415011,110710.0,110700.0,0.05132408]
[1756152802234,4.91523092,110710.0,110700.0,0.05132408]
[1756152802473,5.12935092,110710.0,110700.0,0.00044243]
[1756152802946,4.91523092,110710.0,110700.0,0.00044243]
[1756152803180,0.52566847,110700.0,110690.0,0.04317992]
[1756152803417,4.91423092,110700.0,110690.0,0.04332297]
[1756152803656,4.57012092,110700.0,110690.0,0.04332297]
[1756152803889,4.56612092,110700.0,110690.0,0.04332297]
[1756152804125,4.91422663,110700.0,110690.0,0.04332297]
[1756152804356,5.3089351,110700.0,110690.0,0.00014305]
[1756152804598,5.3099351,110700.0,110690.0,0.04932297]
[1756152805093,4.91522663,110700.0,110690.0,0.04932297]
[1756152805323,4.91422663,110700.0,110690.0,0.04932297]
[1756152805560,4.91211663,110700.0,110690.0,0.04932297]
[1756152805792,5.0957351,110700.0,110690.0,0.04932297]
[1756152806247,4.91211663,110700.0,110690.0,0.04932297]
[1756152806474,4.58126301,110700.0,110690.0,0.04932297]
[1756152806709,4.58126301,110700.0,110690.0,0.06382199]
[1756152806710,4.56502438,110700.0,110690.0,0.06382199]
[1756152806951,4.56402438,110700.0,110690.0,0.04332297]
[1756152807188,4.56502438,110700.0,110690.0,0.04732297]
[1756152807635,4.58528237,110700.0,110690.0,0.04332297]
[1756152807853,5.10595084,110700.0,110690.0,0.00014305]
[1756152808071,5.10990084,110700.0,110690.0,0.04832297]
[1756152808513,5.10890084,110700.0,110690.0,0.04332297]
[1756152808753,5.10990084,110700.0,110690.0,0.04732297]
[1756152809216,5.32274084,110700.0,110690.0,0.04732297]
[1756152809449,5.39230084,110700.0,110690.0,0.00414305]
[1756152809895,5.39130084,110700.0,110690.0,0.00014305]
[1756152810363,5.39182084,110700.0,110690.0,0.00114305]
[1756152810814,5.17846084,110700.0,110690.0,0.00014305]
[1756152811275,5.39362084,110700.0,110690.0,0.00014305]
[1756152811723,0.84174284,110700.0,110690.0,0.00014305]
[1756152811943,0.96630992,110700.0,110690.0,0.00014305]
[1756152812174,0.97095666,110700.0,110690.0,0.00014305]
[1756152812397,0.85322764,110700.0,110690.0,0.00014305]
[1756152812667,5.38407252,110700.0,110690.0,0.00014305]
[1756152812897,0.52570112,110680.0,110670.0,0.04317992]
[1756152813113,0.52571744,110670.0,110660.0,0.001]
[1756152813349,0.001,110650.0,110640.0,0.04317992]
[1756152813572,0.52576644,110640.0,110630.0,0.001]
[1756152813795,5.11683651,110640.0,110630.0,0.04417992]
[1756152814032,4.93207007,110640.0,110630.0,0.04417992]
[1756152814254,5.13045405,110640.0,110630.0,0.04417992]
[1756152814715,4.91739716,110640.0,110630.0,0.04417992]
[1756152814952,5.13031716,110640.0,110630.0,0.04417992]
[1756152815184,5.13031716,110640.0,110630.0,0.04817992]
[1756152815185,5.13131716,110640.0,110630.0,0.04817992]
[1756152815632,5.13131716,110640.0,110630.0,0.005]
[1756152815633,5.34189981,110640.0,110630.0,0.005]
[1756152815862,4.94543337,110640.0,110630.0,0.04817992]
[1756152816092,5.15827337,110640.0,110630.0,0.04817992]
[1756152816324,4.93441769,110640.0,110630.0,0.05122992]
[1756152816604,4.61470818,110640.0,110630.0,0.05122992]
[1756152816831,4.57728898,110640.0,110630.0,0.06467894]
[1756152817064,4.57729149,110640.0,110630.0,0.06693872]
[1756152817318,4.57829149,110640.0,110630.0,0.07167894]
[1756152817547,4.92647457,110640.0,110630.0,0.07167894]
[1756152817764,4.92547457,110640.0,110630.0,0.06467894]
[1756152817983,4.58647457,110640.0,110630.0,0.07167894]
[1756152818215,4.80569182,110640.0,110630.0,0.05422992]
[1756152818436,4.92547457,110640.0,110630.0,0.06467894]
[1756152818678,4.92547457,110640.0,110630.0,0.06693872]
[1756152818679,4.57729149,110640.0,110630.0,0.06693872]
[1756152818910,4.57829149,110640.0,110630.0,0.0771985]
[1756152819179,4.57829149,110640.0,110630.0,0.07267894]
[1756152819395,5.13133149,110640.0,110630.0,0.05217992]
[1756152819619,5.13133149,110640.0,110630.0,0.009]
[1756152819620,5.13633447,110640.0,110630.0,0.009]
[1756152819837,4.92329447,110640.0,110630.0,0.05217992]
[1756152820062,5.13505447,110640.0,110630.0,0.04722992]
[1756152820287,4.92129447,110640.0,110630.0,0.04722992]
[1756152820534,4.57829447,110640.0,110630.0,0.07067894]
[1756152821002,5.13485447,110640.0,110630.0,0.05017992]
[1756152821234,4.92229447,110640.0,110630.0,0.05017992]
[1756152821487,4.93047893,110640.0,110630.0,0.05017992]
[1756152821733,5.11419537,110640.0,110630.0,0.04417992]
[1756152821965,5.12033306,110640.0,110630.0,0.04417992]
[1756152822200,5.21829662,110640.0,110630.0,0.05117992]
[1756152822473,4.98688507,110640.0,110630.0,0.05117992]
[1756152822704,4.98588507,110640.0,110630.0,0.05117992]
[1756152822923,5.19780507,110640.0,110630.0,0.05117992]
[1756152823138,4.57632507,110640.0,110630.0,0.05422992]
[1756152823364,4.57232507,110640.0,110630.0,0.07167894]
[1756152823581,4.91532507,110640.0,110630.0,0.04417992]
[1756152824008,4.91632507,110640.0,110630.0,0.04817992]
[1756152824446,4.91532507,110640.0,110630.0,0.04417992]
[1756152824663,4.91532507,110640.0,110630.0,0.06467894]
[1756152824880,4.91732507,110640.0,110630.0,0.05017992]
[1756152825098,5.10104151,110640.0,110630.0,0.05017992]
[1756152825323,4.9224156,110640.0,110630.0,0.05017992]
[1756152825556,5.1309456,110640.0,110630.0,0.05017992]
[1756152825767,5.13396101,110640.0,110630.0,0.05017992]
[1756152825982,4.91633903,110640.0,110630.0,0.04417992]
[1756152826201,5.12665903,110640.0,110630.0,0.04417992]
[1756152826423,5.31137592,110640.0,110630.0,0.04417992]
[1756152826662,5.12649948,110640.0,110630.0,0.04417992]
[1756152826929,5.32536931,110640.0,110630.0,0.04417992]
[1756152827154,5.32536931,110640.0,110630.0,0.001]
[1756152827378,5.32536931,110640.0,110630.0,0.04417992]
[1756152827379,5.35037566,110640.0,110630.0,0.04417992]
[1756152827614,5.35037566,110640.0,110630.0,0.00192]
[1756152827615,5.45137566,110640.0,110630.0,0.00192]
[1756152827865,0.52178278,110630.0,110620.0,0.001]
[1756152828108,5.1915455,110630.0,110620.0,0.001]
[1756152828355,5.4032555,110630.0,110620.0,0.001]
[1756152828589,5.17268086,110630.0,110620.0,0.04417992]
[1756152828835,5.17168086,110630.0,110620.0,0.04417992]
[1756152829114,4.98689808,110630.0,110620.0,0.04417992]
[1756152829425,4.98575637,110630.0,110620.0,0.04617992]
[1756152829655,5.38410844,110630.0,110620.0,0.003]
[1756152829880,5.40296652,110630.0,110620.0,0.00205]
[1756152830785,5.40272237,110630.0,110620.0,0.00205]
[1756152831030,5.19248237,110630.0,110620.0,5e-05]
[1756152831264,5.40260237,110630.0,110620.0,5e-05]
[1756152831497,5.40149237,110630.0,110620.0,0.00205]
[1756152831741,5.40149237,110630.0,110620.0,0.04522992]
[1756152831742,4.99189566,110630.0,110620.0,0.04522992]
[1756152831973,4.85563637,110630.0,110620.0,0.04322992]
[1756152832197,4.85563637,110630.0,110620.0,0.04422992]
[1756152832417,5.19663637,110630.0,110620.0,0.04422992]
[1756152832668,4.98675637,110630.0,110620.0,0.04422992]
[1756152832892,5.19635637,110630.0,110620.0,0.04422992]
[1756152833126,5.37713915,110630.0,110620.0,0.04422992]
[1756152833344,5.19635637,110630.0,110620.0,0.04422992]
[1756152833581,5.37613915,110630.0,110620.0,0.04322992]
[1756152833808,5.37601915,110630.0,110620.0,0.04522992]
[1756152834037,4.98675637,110630.0,110620.0,0.04522992]
[1756152834267,4.98575637,110630.0,110620.0,0.04322992]
[1756152834539,4.64475637,110630.0,110620.0,0.04627992]
[1756152834760,4.85571637,110630.0,110620.0,0.04827992]
[1756152835234,4.85571656,110630.0,110620.0,0.04827992]
[1756152835469,5.19571656,110630.0,110620.0,0.04827992]
[1756152835711,5.18530256,110630.0,110620.0,0.04827992]
[1756152835947,4.59035892,110630.0,110620.0,0.04827992]
[1756152836418,4.58310892,110630.0,110620.0,0.06798892]
[1756152836644,4.58210892,110630.0,110620.0,0.06372894]
[1756152836873,0.0315388,110630.0,110620.0,0.0682489]
[1756152837103,4.92711386,110630.0,110620.0,0.04627992]
[1756152837320,4.58711386,110630.0,110620.0,0.04627992]
[1756152837544,4.92611386,110630.0,110620.0,0.04627992]
[1756152837814,5.13615386,110630.0,110620.0,0.04322992]
[1756152838037,5.14230653,110630.0,110620.0,0.04322992]
[1756152838260,5.14130653,110630.0,110620.0,0.04322992]
[1756152838486,5.14230653,110630.0,110620.0,0.04322992]
[1756152838734,5.34199812,110630.0,110620.0,0.04322992]
[1756152839374,5.36556553,110630.0,110620.0,5e-05]
[1756152839587,5.18378275,110630.0,110620.0,0.04322992]
[1756152840037,5.36556553,110630.0,110620.0,0.00205]
[1756152840255,4.95317534,110630.0,110620.0,0.04522992]
[1756152840495,5.36444553,110630.0,110620.0,0.04522992]
[1756152840742,5.36444553,110630.0,110570.0,0.22120542]
[1756152840996,5.36444553,110630.0,110500.0,0.34369]